[Event "Early-Titled-Tuesday-Blitz-October-24-2023"]
[Site "Chess.com"]
[Date "2023.10.24"]
[Round "6"]
[White "WPWPWP-2015"]
[Black "Alexei_Gubajdullin"]
[Result "0-1"]
[WhiteElo "2555"]
[BlackElo "2743"]
[TimeControl "180+1"]
[EndTime "9:06:30 PDT"]
[Termination "Alexei_Gubajdullin won by resignation"]

1. e4 {[%clk 0:03:00.9]} 1... c5 {[%clk 0:02:36.3]} 2. Nf3 {[%clk 0:03:00.6]}
2... Nc6 {[%clk 0:02:33.6]} 3. d4 {[%clk 0:03:00.7]} 3... cxd4 {[%clk
0:02:30.1]} 4. Nxd4 {[%clk 0:03:01.6]} 4... Nf6 {[%clk 0:02:28.9]} 5. Nc3 {[%clk
0:03:02.2]} 5... e5 {[%clk 0:02:29]} 6. Ndb5 {[%clk 0:03:02.7]} 6... d6 {[%clk
0:02:29.3]} 7. Bg5 {[%clk 0:03:03.2]} 7... a6 {[%clk 0:02:29.3]} 8. Na3 {[%clk
0:03:03.8]} 8... b5 {[%clk 0:02:29.8]} 9. Nd5 {[%clk 0:03:04.3]} 9... Be7 {[%clk
0:02:30.2]} 10. Bxf6 {[%clk 0:03:05]} 10... Bxf6 {[%clk 0:02:30.6]} 11. c3
{[%clk 0:03:05.7]} 11... Rb8 {[%clk 0:02:29.1]} 12. Nc2 {[%clk 0:03:05.9]} 12...
Bg5 {[%clk 0:02:28.4]} 13. a4 {[%clk 0:03:03.9]} 13... bxa4 {[%clk 0:02:28.3]}
14. Ncb4 {[%clk 0:03:04.2]} 14... Nxb4 {[%clk 0:02:26.2]} 15. cxb4 {[%clk
0:03:03.6]} 15... O-O {[%clk 0:02:24]} 16. Bc4 {[%clk 0:02:56.3]} 16... Be6
{[%clk 0:02:18.6]} 17. Rxa4 {[%clk 0:02:55.3]} 17... a5 {[%clk 0:02:14.8]} 18.
bxa5 {[%clk 0:02:32.9]} 18... Rxb2 {[%clk 0:02:09.9]} 19. O-O {[%clk 0:02:32.7]}
19... Qd7 {[%clk 0:01:57.8]} 20. a6 {[%clk 0:02:25.7]} 20... Qa7 {[%clk
0:01:57.2]} 21. Qa1 {[%clk 0:01:38.6]} 21... Rfb8 {[%clk 0:01:54.7]} 22. Nc3
{[%clk 0:01:29.7]} 22... Bh4 {[%clk 0:01:35.3]} 23. g3 {[%clk 0:01:02.8]} 23...
Bd8 {[%clk 0:01:23.9]} 24. Nb5 {[%clk 0:00:45.5]} 24... R8xb5 {[%clk 0:01:21.2]}
25. Bxb5 {[%clk 0:00:45.6]} 25... Rxb5 {[%clk 0:01:20.9]} 26. Rb1 {[%clk
0:00:44.6]} 26... Rxb1+ {[%clk 0:00:53.4]} 27. Qxb1 {[%clk 0:00:44.5]} 27... Bh3
{[%clk 0:00:44.2]} 28. Qb5 {[%clk 0:00:24.7]} 28... Kf8 {[%clk 0:00:29.1]} 29.
Rc4 {[%clk 0:00:20.3]} 29... Bb6 {[%clk 0:00:26]} 30. Rc2 {[%clk 0:00:19.9]}
30... g6 {[%clk 0:00:23.2]} 31. Ra2 {[%clk 0:00:12.7]} 31... Kg7 {[%clk
0:00:22.7]} 32. Rb2 {[%clk 0:00:11.5]} 32... Qc7 {[%clk 0:00:21.5]} 33. Rb1
{[%clk 0:00:04.6]} 33... Ba7 {[%clk 0:00:21.3]} 34. Qe2 {[%clk 0:00:03.9]} 34...
Qc5 {[%clk 0:00:19.5]} 35. Re1 {[%clk 0:00:03]} 35... Qc3 {[%clk 0:00:18.8]} 36.
Rb1 {[%clk 0:00:02.7]} 36... h5 {[%clk 0:00:18.5]} 37. Rd1 {[%clk 0:00:02.2]}
37... Qa3 {[%clk 0:00:18.1]} 38. Rb1 {[%clk 0:00:02.1]} 38... Qc3 {[%clk
0:00:18.1]} 39. Rd1 {[%clk 0:00:01.9]} 39... Bg4 {[%clk 0:00:18.2]} 40. Qd3
{[%clk 0:00:02.2]} 40... Qc5 {[%clk 0:00:16.9]} 41. Rf1 {[%clk 0:00:01.9]} 41...
Bh3 {[%clk 0:00:16.2]} 42. Qe2 {[%clk 0:00:01.1]} 42... Bxf1 {[%clk 0:00:15.8]}
43. Kxf1 {[%clk 0:00:01.7]} 43... Qb6 {[%clk 0:00:14.5]} 44. h4 {[%clk
0:00:01.8]} 44... Qa5 {[%clk 0:00:13.7]} 45. Kg2 {[%clk 0:00:02.3]} 45... Bd4
{[%clk 0:00:13.7]} 46. Qc4 {[%clk 0:00:02.3]} 46... Qa1 {[%clk 0:00:12.7]} 47.
Qd3 {[%clk 0:00:01.5]} 47... Qb2 {[%clk 0:00:12.1]} 48. Qf1 {[%clk 0:00:01.6]}
48... Qa2 {[%clk 0:00:12.2]} 49. Kg1 {[%clk 0:00:02]} 49... f6 {[%clk
0:00:11.7]} 50. Kg2 {[%clk 0:00:02.4]} 50... Kh6 {[%clk 0:00:11.7]} 51. Kg1
{[%clk 0:00:02.7]} 51... g5 {[%clk 0:00:12.2]} 52. hxg5+ {[%clk 0:00:02.1]}
52... fxg5 {[%clk 0:00:12.6]} 53. Kg2 {[%clk 0:00:02.7]} 53... Kg6 {[%clk
0:00:12.9]} 54. Kg1 {[%clk 0:00:02.8]} 54... g4 {[%clk 0:00:13.2]} 55. Kg2
{[%clk 0:00:03.2]} 55... Bc5 {[%clk 0:00:12.8]} 56. Kg1 {[%clk 0:00:03.4]} 56...
h4 {[%clk 0:00:13.2]} 57. Kg2 {[%clk 0:00:02.4]} 57... h3+ {[%clk 0:00:13.3]}
58. Kh2 {[%clk 0:00:02.7]} 58... Bxf2 {[%clk 0:00:12.8]} 59. Kh1 {[%clk
0:00:02.7]} 59... Bc5 {[%clk 0:00:12.2]} 60. Qf5+ {[%clk 0:00:02.8]} 60... Kh6
{[%clk 0:00:11]} 61. Qe6+ {[%clk 0:00:03.2]} 61... Kh5 {[%clk 0:00:10.3]} 62.
Qf5+ {[%clk 0:00:03.5]} 62... Kh6 {[%clk 0:00:10.7]} 63. Qf6+ {[%clk 0:00:03.7]}
63... Kh7 {[%clk 0:00:10.8]} 64. Qf5+ {[%clk 0:00:04]} 64... Kg8 {[%clk
0:00:09.9]} 65. Qxg4+ {[%clk 0:00:04.4]} 65... Kf8 {[%clk 0:00:10.1]} 66. Qc8+
{[%clk 0:00:04.5]} 66... Ke7 {[%clk 0:00:10.1]} 67. Qxh3 {[%clk 0:00:04.3]}
67... Qxa6 {[%clk 0:00:09.9]} 68. Qh5 {[%clk 0:00:04.2]} 68... Qf1+ {[%clk
0:00:09.1]} 69. Kh2 {[%clk 0:00:04.4]} 69... Qg1+ {[%clk 0:00:09.5]} 70. Kh3
{[%clk 0:00:04.7]} 70... Qh1+ {[%clk 0:00:10]} 71. Kg4 {[%clk 0:00:05.2]} 71...
Qxh5+ {[%clk 0:00:10.5]} 72. Kxh5 {[%clk 0:00:05.8]} 72... Kf6 {[%clk
0:00:11.4]} 73. g4 {[%clk 0:00:05.9]} 73... Be3 {[%clk 0:00:11.8]} 74. Kh4
{[%clk 0:00:06]} 74... Kg6 {[%clk 0:00:12.3]} 75. Kg3 {[%clk 0:00:05.6]} 75...
Kg5 {[%clk 0:00:12.7]} 76. Kf3 {[%clk 0:00:06]} 76... Bf4 {[%clk 0:00:13.6]} 77.
Kg2 {[%clk 0:00:06]} 77... Kxg4 {[%clk 0:00:14.5]} 0-1

[Event "Early-Titled-Tuesday-Blitz-October-24-2023"]
[Site "Chess.com"]
[Date "2023.10.24"]
[Round "6"]
[White "mind1mover"]
[Black "M1711"]
[Result "1-0"]
[WhiteElo "2801"]
[BlackElo "2566"]
[TimeControl "180+1"]
[EndTime "9:06:37 PDT"]
[Termination "mind1mover won on time"]

1. Nf3 {[%clk 0:03:00.9]} 1... d5 {[%clk 0:02:55.7]} 2. b3 {[%clk 0:03:01]} 2...
f6 {[%clk 0:02:54.6]} 3. d4 {[%clk 0:02:59.8]} 3... c5 {[%clk 0:02:52.6]} 4. e3
{[%clk 0:02:55.6]} 4... Nc6 {[%clk 0:02:50.3]} 5. Bb2 {[%clk 0:02:51.9]} 5...
cxd4 {[%clk 0:02:49.6]} 6. exd4 {[%clk 0:02:52.3]} 6... Bg4 {[%clk 0:02:35.3]}
7. Be2 {[%clk 0:02:52.2]} 7... e6 {[%clk 0:02:34.8]} 8. O-O {[%clk 0:02:52.5]}
8... Bd6 {[%clk 0:02:34.9]} 9. c4 {[%clk 0:02:52.6]} 9... Nge7 {[%clk
0:02:34.6]} 10. h3 {[%clk 0:02:51.2]} 10... Bh5 {[%clk 0:02:33.4]} 11. Nbd2
{[%clk 0:02:45.3]} 11... O-O {[%clk 0:02:32.7]} 12. Re1 {[%clk 0:02:39.1]} 12...
Qd7 {[%clk 0:02:27.5]} 13. Nf1 {[%clk 0:02:37.6]} 13... Bf7 {[%clk 0:02:21.5]}
14. Ne3 {[%clk 0:02:36.5]} 14... Rfe8 {[%clk 0:02:19.3]} 15. a3 {[%clk
0:02:32.2]} 15... Bc7 {[%clk 0:02:12.9]} 16. Qc2 {[%clk 0:02:17.7]} 16... Bg6
{[%clk 0:01:50.4]} 17. Bd3 {[%clk 0:02:04]} 17... Rad8 {[%clk 0:01:50.4]} 18.
Rad1 {[%clk 0:02:01.6]} 18... Bxd3 {[%clk 0:01:37.1]} 19. Qxd3 {[%clk
0:02:00.8]} 19... Ng6 {[%clk 0:01:37.6]} 20. g3 {[%clk 0:01:51.3]} 20... dxc4
{[%clk 0:01:26.7]} 21. Qxc4 {[%clk 0:01:27]} 21... Kh8 {[%clk 0:01:13.9]} 22. d5
{[%clk 0:01:15]} 22... exd5 {[%clk 0:01:13]} 23. Nxd5 {[%clk 0:01:15.6]} 23...
Rxe1+ {[%clk 0:01:08.5]} 24. Rxe1 {[%clk 0:01:16.5]} 24... Nge5 {[%clk
0:01:01.5]} 25. Bxe5 {[%clk 0:01:11.1]} 25... Bxe5 {[%clk 0:00:55.4]} 26. Nb4
{[%clk 0:00:51.4]} 26... Nd4 {[%clk 0:00:36.8]} 27. Nxd4 {[%clk 0:00:39.7]}
27... Bxd4 {[%clk 0:00:22.7]} 28. Nd5 {[%clk 0:00:28.9]} 28... Be5 {[%clk
0:00:19.4]} 29. Nf4 {[%clk 0:00:13.3]} 29... Bxf4 {[%clk 0:00:11.2]} 30. Qxf4
{[%clk 0:00:14.2]} 30... h6 {[%clk 0:00:10.9]} 31. h4 {[%clk 0:00:13.8]} 31...
a6 {[%clk 0:00:08.4]} 32. h5 {[%clk 0:00:13.9]} 32... Re8 {[%clk 0:00:08.9]} 33.
Rc1 {[%clk 0:00:13.3]} 33... Qf7 {[%clk 0:00:07.7]} 34. Qf3 {[%clk 0:00:12.5]}
34... b5 {[%clk 0:00:06.4]} 35. b4 {[%clk 0:00:11.9]} 35... Rd8 {[%clk
0:00:05.2]} 36. Kg2 {[%clk 0:00:11.1]} 36... Qd5 {[%clk 0:00:04.9]} 37. Rc6
{[%clk 0:00:04.1]} 37... Qxf3+ {[%clk 0:00:04.8]} 38. Kxf3 {[%clk 0:00:05]}
38... Rd3+ {[%clk 0:00:05.4]} 39. Ke4 {[%clk 0:00:04.8]} 39... Rxa3 {[%clk
0:00:06.3]} 40. g4 {[%clk 0:00:04]} 40... Kh7 {[%clk 0:00:05.9]} 41. f4 {[%clk
0:00:02.5]} 41... Rb3 {[%clk 0:00:05.8]} 42. Rxa6 {[%clk 0:00:01.1]} 42... Rxb4+
{[%clk 0:00:06.7]} 43. Kf5 {[%clk 0:00:01.8]} 43... Rb1 {[%clk 0:00:06.3]} 44.
Rb6 {[%clk 0:00:02]} 44... b4 {[%clk 0:00:06.1]} 45. Rb7 {[%clk 0:00:02.5]}
45... b3 {[%clk 0:00:05.9]} 46. Ke6 {[%clk 0:00:03.1]} 46... Rg1 {[%clk
0:00:02.7]} 47. Kf5 {[%clk 0:00:02.8]} 47... Rb1 {[%clk 0:00:02.4]} 48. Ke6
{[%clk 0:00:02]} 48... Rf1 {[%clk 0:00:02.1]} 49. Kf5 {[%clk 0:00:02]} 49... Rf3
{[%clk 0:00:02.7]} 50. Rb5 {[%clk 0:00:02]} 50... Rg3 {[%clk 0:00:03]} 51. Rb8
{[%clk 0:00:02.1]} 51... Rf3 {[%clk 0:00:03.2]} 52. Ke4 {[%clk 0:00:02.7]} 52...
Rh3 {[%clk 0:00:02.8]} 53. Rb7 {[%clk 0:00:01.8]} 53... Rc3 {[%clk 0:00:03]} 54.
Kf5 {[%clk 0:00:01.6]} 54... Rc5+ {[%clk 0:00:03.2]} 55. Ke6 {[%clk 0:00:01.2]}
55... Rc4 {[%clk 0:00:03.3]} 56. Kf5 {[%clk 0:00:01.6]} 56... Rc3 {[%clk
0:00:03.8]} 57. Ke4 {[%clk 0:00:02.1]} 57... Kg8 {[%clk 0:00:03.1]} 58. Rb8+
{[%clk 0:00:02.3]} 58... Kf7 {[%clk 0:00:03.2]} 59. Rb7+ {[%clk 0:00:02.8]}
59... Kf8 {[%clk 0:00:03.8]} 60. Rb6 {[%clk 0:00:03.3]} 60... Rg3 {[%clk
0:00:02.2]} 61. Kf5 {[%clk 0:00:03.7]} 61... Kf7 {[%clk 0:00:02.2]} 62. Rb7+
{[%clk 0:00:04.1]} 62... Kf8 {[%clk 0:00:02.6]} 63. Rb8+ {[%clk 0:00:04.6]}
63... Ke7 {[%clk 0:00:02.7]} 64. Rb7+ {[%clk 0:00:02.3]} 64... Kf8 {[%clk
0:00:03.3]} 65. Rb4 {[%clk 0:00:02.6]} 65... Kg8 {[%clk 0:00:03]} 66. Rb5 {[%clk
0:00:02.2]} 66... Kh7 {[%clk 0:00:03.3]} 67. Ra5 {[%clk 0:00:02.4]} 67... Rc3
{[%clk 0:00:03.8]} 68. Rb5 {[%clk 0:00:02.5]} 68... Kg8 {[%clk 0:00:03.5]} 69.
Kg6 {[%clk 0:00:01.7]} 69... Kf8 {[%clk 0:00:02]} 70. Rb8+ {[%clk 0:00:02]}
70... Ke7 {[%clk 0:00:02.5]} 71. Kxg7 {[%clk 0:00:02.6]} 71... Rg3 {[%clk
0:00:03.1]} 72. Rb7+ {[%clk 0:00:02.8]} 72... Ke6 {[%clk 0:00:01.9]} 73. Rb6+
{[%clk 0:00:02.3]} 73... Ke7 {[%clk 0:00:02.4]} 74. Rb7+ {[%clk 0:00:02.3]}
74... Ke6 {[%clk 0:00:02.8]} 75. f5+ {[%clk 0:00:03]} 75... Ke5 {[%clk
0:00:01.7]} 76. Rb5+ {[%clk 0:00:03.3]} 1-0

[Event "Early-Titled-Tuesday-Blitz-October-24-2023"]
[Site "Chess.com"]
[Date "2023.10.24"]
[Round "6"]
[White "Estrategia_vs_Tactica"]
[Black "ilushka"]
[Result "0-1"]
[WhiteElo "2266"]
[BlackElo "2448"]
[TimeControl "180+1"]
[EndTime "9:06:51 PDT"]
[Termination "ilushka won by resignation"]

1. e4 {[%clk 0:02:57.3]} 1... e5 {[%clk 0:03:00.5]} 2. Nf3 {[%clk 0:02:56.4]}
2... Nc6 {[%clk 0:03:01]} 3. Bc4 {[%clk 0:02:55.5]} 3... Nf6 {[%clk 0:03:01.5]}
4. d3 {[%clk 0:02:54.1]} 4... Bc5 {[%clk 0:03:01.2]} 5. O-O {[%clk 0:02:54.2]}
5... d6 {[%clk 0:03:01.2]} 6. c3 {[%clk 0:02:54.5]} 6... O-O {[%clk 0:03:00.5]}
7. a4 {[%clk 0:02:54.8]} 7... a5 {[%clk 0:03:00.2]} 8. h3 {[%clk 0:02:52.5]}
8... h6 {[%clk 0:02:59.7]} 9. Na3 {[%clk 0:02:52.4]} 9... Be6 {[%clk 0:02:58.4]}
10. Re1 {[%clk 0:02:49.6]} 10... Re8 {[%clk 0:02:52.5]} 11. Be3 {[%clk
0:02:49.2]} 11... Bxe3 {[%clk 0:02:49.1]} 12. Rxe3 {[%clk 0:02:48.8]} 12... d5
{[%clk 0:02:27.1]} 13. Bb5 {[%clk 0:02:39.6]} 13... dxe4 {[%clk 0:02:18.3]} 14.
dxe4 {[%clk 0:02:38.1]} 14... Qxd1+ {[%clk 0:01:56.4]} 15. Rxd1 {[%clk
0:02:37.5]} 15... Bb3 {[%clk 0:01:57]} 16. Rd2 {[%clk 0:02:32.4]} 16... Rad8
{[%clk 0:01:37.5]} 17. Rxd8 {[%clk 0:01:49.9]} 17... Rxd8 {[%clk 0:01:38.4]} 18.
c4 {[%clk 0:01:45.9]} 18... Bd1 {[%clk 0:01:27.7]} 19. Bxc6 {[%clk 0:01:46.1]}
19... bxc6 {[%clk 0:01:13.1]} 20. Nxe5 {[%clk 0:01:45.7]} 20... Rb8 {[%clk
0:01:03.2]} 21. Nxc6 {[%clk 0:01:38.6]} 21... Rxb2 {[%clk 0:01:03.1]} 22. Nxa5
{[%clk 0:01:37.5]} 22... Bxa4 {[%clk 0:01:02.9]} 23. e5 {[%clk 0:01:32.2]} 23...
Nd7 {[%clk 0:00:55.1]} 24. f4 {[%clk 0:01:23.2]} 24... Nc5 {[%clk 0:00:51.1]}
25. Nb5 {[%clk 0:01:12.9]} 25... Bxb5 {[%clk 0:00:48.1]} 26. cxb5 {[%clk
0:01:13.8]} 26... Rxb5 {[%clk 0:00:46.8]} 27. Nc6 {[%clk 0:01:13.8]} 27... Ne6
{[%clk 0:00:20.3]} 28. f5 {[%clk 0:01:09.8]} 28... Rc5 {[%clk 0:00:20.8]} 29.
Nb4 {[%clk 0:00:37.9]} 29... Nd4 {[%clk 0:00:18.8]} 30. e6 {[%clk 0:00:31.1]}
30... Kf8 {[%clk 0:00:17.6]} 31. g4 {[%clk 0:00:18.8]} 31... fxe6 {[%clk
0:00:15.8]} 32. fxe6 {[%clk 0:00:19]} 32... Ke7 {[%clk 0:00:15.5]} 33. Re4
{[%clk 0:00:19.3]} 33... Nxe6 {[%clk 0:00:14.4]} 34. Nd3 {[%clk 0:00:20]} 34...
Rc6 {[%clk 0:00:08.3]} 35. Nf4 {[%clk 0:00:20.5]} 35... Kf7 {[%clk 0:00:07.5]}
36. Nd5 {[%clk 0:00:20]} 36... Ng5 {[%clk 0:00:06.9]} 37. Re3 {[%clk 0:00:20]}
37... Rc5 {[%clk 0:00:06.2]} 38. Nf4 {[%clk 0:00:20.2]} 38... Rc2 {[%clk
0:00:05.1]} 39. h4 {[%clk 0:00:19.6]} 39... Nh7 {[%clk 0:00:04.1]} 40. Nd5
{[%clk 0:00:20]} 40... Nf6 {[%clk 0:00:04.3]} 41. Rf3 {[%clk 0:00:18.5]} 41...
Ke6 {[%clk 0:00:04]} 42. Nxf6 {[%clk 0:00:18.7]} 42... gxf6 {[%clk 0:00:04.9]}
43. Re3+ {[%clk 0:00:19.1]} 43... Kd5 {[%clk 0:00:04.9]} 44. Rf3 {[%clk
0:00:19.6]} 44... Ke5 {[%clk 0:00:05.6]} 45. Re3+ {[%clk 0:00:19.1]} 45... Kf4
{[%clk 0:00:05.9]} 46. Rd3 {[%clk 0:00:10.4]} 46... Kxg4 {[%clk 0:00:06.1]} 47.
Rd4+ {[%clk 0:00:08]} 47... Kh5 {[%clk 0:00:05.7]} 48. Kf1 {[%clk 0:00:07.5]}
48... f5 {[%clk 0:00:05.3]} 49. Rf4 {[%clk 0:00:08]} 49... c5 {[%clk 0:00:04.9]}
50. Rxf5+ {[%clk 0:00:08.1]} 50... Kxh4 {[%clk 0:00:05.4]} 51. Rd5 {[%clk
0:00:08.3]} 51... h5 {[%clk 0:00:05.6]} 52. Kg1 {[%clk 0:00:08.8]} 52... Kg4
{[%clk 0:00:05.9]} 53. Rd8 {[%clk 0:00:08.8]} 53... h4 {[%clk 0:00:06.2]} 54.
Rf8 {[%clk 0:00:08.7]} 54... h3 {[%clk 0:00:05.8]} 55. Kh1 {[%clk 0:00:08.4]}
55... c4 {[%clk 0:00:04.6]} 56. Rg8+ {[%clk 0:00:08.8]} 56... Kf3 {[%clk
0:00:04.6]} 57. Rh8 {[%clk 0:00:09.1]} 57... c3 {[%clk 0:00:04.3]} 58. Rxh3+
{[%clk 0:00:09]} 58... Ke2 {[%clk 0:00:05]} 59. Kg2 {[%clk 0:00:09.1]} 59...
Kd1+ {[%clk 0:00:05.1]} 60. Kf1 {[%clk 0:00:09.5]} 60... Kc1 {[%clk 0:00:04.1]}
61. Ke1 {[%clk 0:00:08.9]} 61... Kb2 {[%clk 0:00:04.7]} 62. Rh8 {[%clk
0:00:07.9]} 62... Rd2 {[%clk 0:00:04.9]} 63. Rb8+ {[%clk 0:00:07.3]} 63... Kc2
{[%clk 0:00:05.3]} 64. Rc8 {[%clk 0:00:07.8]} 64... Rd5 {[%clk 0:00:05.4]} 65.
Ke2 {[%clk 0:00:07.1]} 65... Re5+ {[%clk 0:00:05.9]} 66. Kf3 {[%clk 0:00:07.1]}
66... Kd2 {[%clk 0:00:06.3]} 67. Kf4 {[%clk 0:00:06.9]} 67... Re7 {[%clk
0:00:06.2]} 68. Rd8+ {[%clk 0:00:06.5]} 68... Kc1 {[%clk 0:00:05.5]} 69. Rc8
{[%clk 0:00:06.9]} 69... c2 {[%clk 0:00:06.4]} 70. Kf3 {[%clk 0:00:07.4]} 70...
Kd2 {[%clk 0:00:05.9]} 71. Rd8+ {[%clk 0:00:07.2]} 71... Kc3 {[%clk 0:00:06]}
72. Rc8+ {[%clk 0:00:07.6]} 72... Kb3 {[%clk 0:00:05.1]} 73. Rb8+ {[%clk
0:00:08.1]} 73... Kc3 {[%clk 0:00:05.3]} 74. Rc8+ {[%clk 0:00:08.7]} 74... Kb2
{[%clk 0:00:05.6]} 75. Rb8+ {[%clk 0:00:09.2]} 75... Kc1 {[%clk 0:00:06.3]} 76.
Kf2 {[%clk 0:00:09.1]} 76... Re4 {[%clk 0:00:06.6]} 77. Rc8 {[%clk 0:00:09.2]}
77... Kd2 {[%clk 0:00:05.6]} 78. Kf3 {[%clk 0:00:07.1]} 78... Rd4 {[%clk
0:00:05]} 0-1

[Event "Early-Titled-Tuesday-Blitz-October-24-2023"]
[Site "Chess.com"]
[Date "2023.10.24"]
[Round "6"]
[White "LiemLe"]
[Black "chessfatbear"]
[Result "1-0"]
[WhiteElo "2965"]
[BlackElo "2805"]
[TimeControl "180+1"]
[EndTime "9:06:58 PDT"]
[Termination "LiemLe won on time"]

1. Nf3 {[%clk 0:03:00.9]} 1... Nf6 {[%clk 0:02:57.6]} 2. c4 {[%clk 0:03:00.9]}
2... e6 {[%clk 0:02:56.1]} 3. Nc3 {[%clk 0:03:00.2]} 3... d5 {[%clk 0:02:56.2]}
4. e3 {[%clk 0:03:00.8]} 4... Be7 {[%clk 0:02:55]} 5. b3 {[%clk 0:03:00.7]} 5...
O-O {[%clk 0:02:55]} 6. Bb2 {[%clk 0:03:01.3]} 6... b6 {[%clk 0:02:52]} 7. cxd5
{[%clk 0:02:58.3]} 7... exd5 {[%clk 0:02:52.1]} 8. g3 {[%clk 0:02:57]} 8... c5
{[%clk 0:02:50.5]} 9. d4 {[%clk 0:02:52.2]} 9... Nc6 {[%clk 0:02:49.4]} 10. Bg2
{[%clk 0:02:50.9]} 10... Ba6 {[%clk 0:02:43]} 11. Ne2 {[%clk 0:02:30.8]} 11...
cxd4 {[%clk 0:02:22.7]} 12. Nfxd4 {[%clk 0:02:23.1]} 12... Nxd4 {[%clk
0:02:21.4]} 13. Bxd4 {[%clk 0:01:56.2]} 13... Bb4+ {[%clk 0:02:16.7]} 14. Kf1
{[%clk 0:01:56.5]} 14... Ne4 {[%clk 0:02:12.1]} 15. Kg1 {[%clk 0:01:52.4]} 15...
Rc8 {[%clk 0:02:06.8]} 16. Nf4 {[%clk 0:01:49.8]} 16... Bc3 {[%clk 0:01:29.1]}
17. Rc1 {[%clk 0:01:15.9]} 17... Bxd4 {[%clk 0:01:26.5]} 18. Rxc8 {[%clk
0:01:16.8]} 18... Qxc8 {[%clk 0:01:10.2]} 19. exd4 {[%clk 0:01:06.2]} 19... Nc3
{[%clk 0:01:09.1]} 20. Qd2 {[%clk 0:01:02.6]} 20... g5 {[%clk 0:00:49.3]} 21.
Bh3 {[%clk 0:00:51.3]} 21... f5 {[%clk 0:00:37.1]} 22. Nh5 {[%clk 0:00:29.7]}
22... Ne4 {[%clk 0:00:37]} 23. Qe3 {[%clk 0:00:27.8]} 23... Qc2 {[%clk
0:00:23.6]} 24. f3 {[%clk 0:00:20]} 24... f4 {[%clk 0:00:20.1]} 25. gxf4 {[%clk
0:00:19.5]} 25... gxf4 {[%clk 0:00:20.2]} 26. Qe1 {[%clk 0:00:18.9]} 26... Kh8
{[%clk 0:00:15.3]} 27. Bg4 {[%clk 0:00:19.2]} 27... Rg8 {[%clk 0:00:07.8]} 28.
h3 {[%clk 0:00:19.2]} 28... Qd3 {[%clk 0:00:03.8]} 29. Kh2 {[%clk 0:00:17.4]}
29... Qxd4 {[%clk 0:00:01.6]} 30. fxe4 {[%clk 0:00:12.6]} 30... dxe4 {[%clk
0:00:02.4]} 31. Qa1 {[%clk 0:00:12.3]} 31... Qxa1 {[%clk 0:00:02.1]} 32. Rxa1
{[%clk 0:00:13.2]} 32... f3 {[%clk 0:00:02.9]} 33. Kg3 {[%clk 0:00:13.1]} 33...
Rf8 {[%clk 0:00:03]} 34. Kf2 {[%clk 0:00:12.7]} 34... e3+ {[%clk 0:00:03]} 35.
Kxe3 {[%clk 0:00:12.5]} 35... f2 {[%clk 0:00:03.9]} 36. Be2 {[%clk 0:00:12.3]}
36... Re8+ {[%clk 0:00:04.4]} 37. Kxf2 {[%clk 0:00:10.7]} 37... Rxe2+ {[%clk
0:00:05.3]} 38. Kg3 {[%clk 0:00:11.3]} 38... Re3+ {[%clk 0:00:05.6]} 39. Kh4
{[%clk 0:00:10]} 39... Bc8 {[%clk 0:00:05.4]} 40. Rd1 {[%clk 0:00:09.5]} 40...
Rxh3+ {[%clk 0:00:04.9]} 41. Kg5 {[%clk 0:00:09.9]} 41... Kg8 {[%clk 0:00:01.2]}
42. Rd8+ {[%clk 0:00:09.3]} 42... Kf7 {[%clk 0:00:02.1]} 43. Rxc8 {[%clk
0:00:10.2]} 43... Ke6 {[%clk 0:00:02.4]} 44. Rc7 {[%clk 0:00:10.1]} 44... a5
{[%clk 0:00:01.6]} 45. Rc6+ {[%clk 0:00:10.5]} 45... Kd5 {[%clk 0:00:02.1]} 46.
Rxb6 {[%clk 0:00:11.4]} 46... Kc5 {[%clk 0:00:02.8]} 47. Rb7 {[%clk 0:00:11.6]}
47... Kc6 {[%clk 0:00:02.9]} 48. Rxh7 {[%clk 0:00:11]} 48... Rh2 {[%clk
0:00:03.6]} 49. a4 {[%clk 0:00:07.2]} 49... Rh3 {[%clk 0:00:03.4]} 50. Rh6+
{[%clk 0:00:06.8]} 50... Kc5 {[%clk 0:00:03.9]} 51. Ra6 {[%clk 0:00:07.4]} 51...
Rxb3 {[%clk 0:00:02.4]} 52. Rxa5+ {[%clk 0:00:07]} 52... Kb4 {[%clk 0:00:03.3]}
53. Ra8 {[%clk 0:00:07.3]} 53... Ra3 {[%clk 0:00:03.8]} 54. Nf4 {[%clk
0:00:07.3]} 54... Rxa4 {[%clk 0:00:04.3]} 55. Nd5+ {[%clk 0:00:07.2]} 55... Ka3
{[%clk 0:00:04.7]} 56. Rd8 {[%clk 0:00:06.7]} 56... Ra5 {[%clk 0:00:03.4]} 57.
Kf4 {[%clk 0:00:07]} 57... Kb3 {[%clk 0:00:04]} 58. Ke4 {[%clk 0:00:07.4]} 58...
Ra1 {[%clk 0:00:03.9]} 59. Rb8+ {[%clk 0:00:06.4]} 59... Kc4 {[%clk 0:00:04.4]}
60. Rc8+ {[%clk 0:00:06.5]} 60... Kb5 {[%clk 0:00:04.3]} 61. Kd4 {[%clk
0:00:04.9]} 61... Rd1+ {[%clk 0:00:04.1]} 62. Ke5 {[%clk 0:00:05.6]} 62... Re1+
{[%clk 0:00:04.3]} 63. Kd6 {[%clk 0:00:05.8]} 63... Rd1 {[%clk 0:00:04.9]} 64.
Rc5+ {[%clk 0:00:06.3]} 64... Ka4 {[%clk 0:00:04]} 65. Kc6 {[%clk 0:00:07.2]}
65... Kb3 {[%clk 0:00:03.9]} 66. Rb5+ {[%clk 0:00:07.7]} 66... Ka3 {[%clk
0:00:02]} 67. Kc5 {[%clk 0:00:07.8]} 67... Rc1+ {[%clk 0:00:02.2]} 68. Kd4
{[%clk 0:00:08.2]} 68... Rd1+ {[%clk 0:00:02.9]} 69. Kc3 {[%clk 0:00:07.8]}
69... Rc1+ {[%clk 0:00:03.1]} 70. Kd2 {[%clk 0:00:06.6]} 70... Rc8 {[%clk
0:00:02.6]} 71. Rb7 {[%clk 0:00:06.4]} 71... Rd8 {[%clk 0:00:01.9]} 72. Kc3
{[%clk 0:00:05.6]} 72... Rc8+ {[%clk 0:00:01.3]} 73. Nc7 {[%clk 0:00:06]} 73...
Ka2 {[%clk 0:00:01.1]} 74. Kc2 {[%clk 0:00:04.9]} 74... Ka3 {[%clk 0:00:01.2]}
75. Kc3 {[%clk 0:00:05.3]} 75... Ka2 {[%clk 0:00:01]} 76. Kd3 {[%clk 0:00:03.3]}
1-0